Cogmind - Beta 16 @@@ ROGUE MODE // 2025.12.18 @ 11:45:32 Player: TheGamingJasper Result: Destroyed by G-67 Veteran with Plasma Rifle Performance ------------- Evolutions (5) 2500 Regions Visited (8) 1600 Robots Destroyed (15) 75 Value Destroyed (462) 462 Prototype IDs (12) 240 Alien Tech Used (0) 0 Bonus (-39) -39 TOTAL SCORE: 4838 Bonus ------- Friendly Fire -39 Cogmind --------- Core Integrity 0/1000 Matter 257/300 Energy 100/100 System Corruption 0% Temperature Cool (0) Movement Core (50) Location -5/Factory Parts ------- > --- POWER (2) -------- (None) > --- PROPULSION (4) --- (None) > --- UTILITY (8) ------ Enhanced Optical Array Advanced Targeting Computer Advanced Targeting Computer > --- WEAPON (3) ------- (None) > --- INVENTORY (5) ---- VTOL Module Hardlight Generator Peak State ------------ > --- POWER ------------ Improved Deuterium Engine Light Fission Core > --- PROPULSION ------- Airjet Airjet Airjet Gravmag System > --- UTILITY ---------- Structural Scanner Enhanced Optical Array Transport Network Coupler Targeting Computer Improved Hardlight Generator Hacking Suite > --- WEAPON ----------- Beam Rifle Greatsword > --- INVENTORY -------- Light Nuclear Core Improved Cryofiber Web Advanced Terrain Scanner Advanced Melee Analysis Suite Power Sword [Rating: 50] Favorites ----------- Power Light Fission Core Engine Ion Engine Power Core Light Fission Core Propulsion Airjet Leg Aluminum Leg Hover Unit Airjet Flight Unit Flight Unit Utility Transport Network Coupler Device Structural Scanner Storage Compact Battery Processor Transport Network Coupler Hackware Hacking Suite Weapon Assault Rifle Energy Gun Beam Rifle Ballistic Gun Assault Rifle Launcher Grenade Launcher Slashing Weapon Greatsword Special Melee Weapon Improved Datajack Build | -11 -10 -10 -8 -7 -6 -6 -6 -5 ------- Run | Yrd Mat Sub Mat Fac Fac Low Low Fac Slots Evolved 10 | . . . 4 2 2 . . 2 Power 1 | . . . 1 . . . . . Propulsion 2 | . . . 2 . . . . . Utility 6 | . . . 1 2 1 . . 2 Weapon 1 | . . . . . 1 . . . Parts Attached 48 | 5 7 2 8 4 8 7 . 7 Power 7 | 1 . 1 2 1 1 . . 1 Engine 3 | 1 . 1 . 1 . . . . Core 4 | . . . 2 . 1 . . 1 Reactor . | . . . . . . . . . Propulsion 17 | 2 3 1 5 . 2 1 . 3 Treads . | . . . . . . . . . Leg 5 | 2 . . . . 1 1 . 1 Wheel . | . . . . . . . . . Hover 9 | . 2 . 4 . 1 . . 2 Flight 3 | . 1 1 1 . . . . . Utility 14 | . 2 . . 2 4 4 . 2 Device 6 | . 1 . . 1 2 . . 2 Storage 1 | . . . . . 1 . . . Processor 6 | . 1 . . . 1 4 . . Hackware 1 | . . . . 1 . . . . Protection . | . . . . . . . . . Artifact . | . . . . . . . . . Weapon 10 | 2 2 . 1 1 1 2 . 1 Energy Gun 2 | . . . 1 . 1 . . . Energy Cannon . | . . . . . . . . . Ballistic Gun 3 | 2 1 . . . . . . . Ballistic Cannon . | . . . . . . . . . Launcher 1 | . 1 . . . . . . . Special Weapon . | . . . . . . . . . Impact Weapon . | . . . . . . . . . Slashing Weapon 3 | . . . . 1 . 2 . . Piercing Weapon . | . . . . . . . . . Special Melee Weapon 1 | . . . . . . . . 1 Unidentified Prototypes . | . . . . . . . . . Parts Lost 33 | . . 2 6 . 1 16 . 8 Power 5 | . . . 1 . . 2 . 2 Propulsion 11 | . . 1 2 . 1 4 . 3 Utility 8 | . . . . . . 6 . 2 Weapon 9 | . . 1 3 . . 4 . 1 Highest Loss Streak 8 | . . 1 4 . 1 8 . 8 To Critical Strikes . | . . . . . . . . . Average Backups 3 | 1 3 4 1 2 4 4 5 2 Power 1 | . 1 1 1 1 1 1 1 . Propulsion . | . 1 1 . . . . 3 1 Utility 1 | . . . . . 1 2 1 . Weapon . | . 1 1 . . . . . . Tool/Special . | . . . . . . . . . Unused Backups 6 | . . . . 2 1 1 . 2 Power 1 | . . . . 1 . . . . Propulsion 1 | . . . . . . . . 1 Utility 3 | . . . . . 1 1 . 1 Weapon 1 | . . . . 1 . . . . Tool/Special . | . . . . . . . . . Average Slot Usage (%) 68 | . 89 93 59 71 87 39 20 42 Engine 6 | . 14 14 2 . 5 . . . Core 2 | . . . 2 14 6 2 . 3 Leg 1 | . 13 . . . . . . 7 Hover 11 | . 14 13 10 30 25 2 . 1 Flight 4 | . . 14 14 . . . . . Device 8 | . 12 14 9 11 12 1 . 8 Processor 14 | . 5 14 9 7 10 20 20 17 Hackware 1 | . . . . 3 6 2 . . Energy Gun 1 | . . . . . 6 2 . . Ballistic Gun 5 | . 20 10 10 . . . . . Launcher 3 | . 7 11 . . . . . . Slashing Weapon 2 | . . . . 1 6 4 . . Peak Build Rating 50 | 5 7 7 20 36 48 50 12 37 Average Rating 19 | 2 6 6 9 26 42 22 12 28 On Entrance 16 | . 5 7 7 20 36 48 12 12 Avg Prop Armor Cover (%) 15 | . 6 . 19 . . . . . Naked Turns . | . . . . . . . . . Heaviest Build 36 | 8 11 11 11 33 36 35 . 20 Greatest Support 35 | 20 20 12 32 32 33 33 3 35 Greatest Overweight (x) 4 | . 1 1 . 1 1 4 . 1 Average Overweight (x) . | . . . . . . . . . Largest Inventory Capacity 5 | 5 5 5 5 5 5 5 5 5 Average Capacity 5 | 5 5 5 5 5 5 5 5 5 Most Carried 5 | 4 5 5 4 5 5 5 5 5 Average Carried 3 | 1 3 4 1 2 4 4 5 1 Final Capacity 5 | 5 5 5 5 5 5 5 5 5 Final Carried 5 | 1 5 2 1 3 5 5 5 2 Class Distribution -------------------- 94% | Mutant 5% | Derelict-Mutant Dominant Class ---------------- Mutant | -10/Materials Mutant | -10/Subcaves Mutant | -8/Materials Mutant | -7/Factory Mutant | -6/Factory Mutant | -6/Lower Caves Mutant | -6/Lower Caves Derelict-Mutant | -5/Factory Resources | -11 -10 -10 -8 -7 -6 -6 -6 -5 ----------- Run | Yrd Mat Sub Mat Fac Fac Low Low Fac Matter Collected 944 | 240 51 300 49 . 76 214 14 . Remotely . | . . . . . . . . . Salvage Created 433 | . 114 17 163 . 50 89 . . Parts 28 | . 11 2 8 . 4 3 . . Haulers Intercepted . | . . . . . . . . . Recyclers Shooed . | . . . . . . . . . Parts Field Recycled . | . . . . . . . . . Retrieved Matter . | . . . . . . . . . Parts Self-Destructed 10 | . . 6 . . . 4 . . Prevented . | . . . . . . . . . Parts Restored . | . . . . . . . . . Kills | -11 -10 -10 -8 -7 -6 -6 -6 -5 ------- Run | Yrd Mat Sub Mat Fac Fac Low Low Fac Combat Hostiles Destroyed 14 | . 5 1 3 . 1 4 . . Melee 3 | . . . . . 1 2 . . Guns 5 | . . . 3 . . 2 . . AOE 6 | . 5 1 . . . . . . Classes Destroyed 6 | . 3 1 1 . 1 . . . Worker 1 | . 1 . . . . . . . Swarmer 7 | . 3 . . . . 4 . . Grunt 4 | . 2 . 2 . . . . . Sentry 1 | . . . 1 . . . . . Hunter 1 | . . . . . 1 . . . Subdweller 1 | . . 1 . . . . . . Best Kill Streak 6 | . 6 1 2 . 1 3 . . Combat Bots Only 5 | . 5 1 2 . 1 3 . . Max Kills in Single Turn 2 | . 2 1 1 . 1 1 . . Gunslinging . | . . . . . . . . . Exploded 2 | . 2 1 . . . . . . Melee 1 | . . . . . 1 1 . . Uniques/NPCs Destroyed . | . . . . . . . . . Combat | -11 -10 -10 -8 -7 -6 -6 -6 -5 -------- Run | Yrd Mat Sub Mat Fac Fac Low Low Fac Hostile Shots Fired 373 | . 6 6 46 . 39 145 5 126 Missed 138 | . 2 4 14 . 17 52 2 47 Hits 235 | . 4 2 32 . 22 93 3 79 Melee 2 | . . . . . . 2 . . Projectile 233 | . 4 2 32 . 22 91 3 79 Critical Strikes 8 | . . . 3 . . 1 . 4 Damage Taken 4093 | . 34 193 659 . 296 1338 58 1515 Core 2143 | . 11 47 272 . 37 707 58 1011 Absorbed by Shields 264 | . . . . . 36 228 . . Core Remaining (%) 66 | 100 . 76 50 100 . . 5 . Volleys Fired 54 | . 9 14 21 . . 10 . . Largest 2 | . 2 2 2 . . 1 . . Hottest 56 | . 50 50 56 . . 56 . . Shots Fired 77 | . 13 17 37 . . 10 . . Gun 58 | . 6 5 37 . . 10 . . Cannon . | . . . . . . . . . Launcher 19 | . 7 12 . . . . . . Special . | . . . . . . . . . Kinetic 47 | . 6 5 36 . . . . . Thermal 11 | . . . 1 . . 10 . . Explosive 19 | . 7 12 . . . . . . Electromagnetic . | . . . . . . . . . Robot Hit Streak 7 | . 1 5 7 . . 3 . . Robot Miss Streak 4 | . 4 . 2 . . 2 . . Penetration Max . | . . . . . . . . . Secondary Targets . | . . . . . . . . . Shots Hit Robots 48 | . 1 5 28 . 2 11 . 1 Core Hits 32 | . 8 9 8 . 1 6 . . Critical Kills . | . . . . . . . . . Critical Parts Destroyed . | . . . . . . . . . Critical Strikes 1 | . . 1 . . . . . . Destroy 1 | . . 1 . . . . . . Melee Attacks 15 | . . . . . 3 10 . 2 Impact . | . . . . . . . . . Slashing 13 | . . . . . 3 10 . . Piercing . | . . . . . . . . . Sneak Attacks . | . . . . . . . . . Combat Hostiles . | . . . . . . . . . Follow-up Attacks . | . . . . . . . . . Damage Inflicted 1574 | . 288 525 358 . 106 293 . 4 Guns 506 | . 14 49 358 . . 85 . . Cannons . | . . . . . . . . . Explosions 750 | . 274 476 . . . . . . Melee 314 | . . . . . 106 208 . . Ramming 4 | . . . . . . . . 4 Kinetic 407 | . 14 49 344 . . . . . Thermal 99 | . . . 14 . . 85 . . Explosive 750 | . 274 476 . . . . . . Electromagnetic . | . . . . . . . . . Impact . | . . . . . . . . . Slashing 314 | . . . . . 106 208 . . Piercing . | . . . . . . . . . Highest Corruption 6 | . . . . . . 6 6 . Average Corruption 5 | . . . . . . 5 6 . Corruption Purged . | . . . . . . . . . Corruption Blocked . | . . . . . . . . . Effects 8 | . . . . . . 8 . . Message Errors 1 | . . . . . . 1 . . Matter Fused 2 | . . . . . . 2 . . Heat Flow Errors 3 | . . . . . . 3 . . Data Loss (minor) 1 | . . . . . . 1 . . Data Loss (major) 1 | . . . . . . 1 . . Overload Shots . | . . . . . . . . . Overflow Damage 36 | . 25 . . . . 11 . . Projectiles . | . . . . . . . . . Explosions 25 | . 25 . . . . . . . Melee 11 | . . . . . . 11 . . Knockbacks . | . . . . . . . . . Impact . | . . . . . . . . . Kinetic . | . . . . . . . . . Secondary . | . . . . . . . . . Self-Inflicted Damage 86 | . 5 80 . . . . . 1 Shots 5 | . 1 4 . . . . . . Rammed 2 | . . . . . . . . 2 Targets Rammed 2 | . . . . . . . . 2 Kicked . | . . . . . . . . . Crushed . | . . . . . . . . . Highest Temperature 250 | . 8 . 11 . 4 250 . 22 Average Temperature 48 | . 8 . 7 . 2 79 . 8 Received Heat Transfer 990 | . . 15 297 . 60 186 27 405 Siege Activations . | . . . . . . . . . Martial Activations . | . . . . . . . . . Shielding Activations . | . . . . . . . . . Robots Disrupted . | . . . . . . . . . Combat Hostiles . | . . . . . . . . . Robots Corrupted . | . . . . . . . . . Combat Hostiles . | . . . . . . . . . Parts Fried . | . . . . . . . . . Impact Corruptions . | . . . . . . . . . Robots Melted . | . . . . . . . . . Combat Hostiles . | . . . . . . . . . Parts Melted . | . . . . . . . . . Heat Transferred 259 | . . . 37 . . 222 . . Parts Sabotaged . | . . . . . . . . . Parts Stolen . | . . . . . . . . . Parts Stripped . | . . . . . . . . . Power Chain Reactions . | . . . . . . . . . Alert | -11 -10 -10 -8 -7 -6 -6 -6 -5 ------- Run | Yrd Mat Sub Mat Fac Fac Low Low Fac Maximum Alert Level . | . . . . . . . . . Low Security (%) 100 | 100 100 . 100 100 100 . . 100 Level 1 . | . . . . . . . . . Level 2 . | . . . . . . . . . Level 3 . | . . . . . . . . . Level 4 . | . . . . . . . . . Level 5 . | . . . . . . . . . High Security . | . . . . . . . . . Max Security . | . . . . . . . . . Peak Influence 179 | . 179 . 50 . 120 . . 105 Initial 105 | . . . . . . . . 105 Average 30 | . 40 . 15 . 32 . . 50 Influence Increases 1101 | . 217 . 90 . 219 575 . . Destroy 0b10 Robot/C 260 | . 100 . 60 . 20 80 . . Destroy 0b10 Robot/NC 5 | . 5 . . . . . . . Destroy Leader 60 | . 20 . 30 . 10 . . . Successful Hack 24 | . . . . . 24 . . . Disable Machine 15 | . 15 . . . . . . . Destroy Structure 47 | . 47 . . . . . . . Lose Combat Pursuer 690 | . 30 . . . 165 495 . . Influence Decreases 1101 | . 49 168 90 . 119 455 52 168 Entered New Map 223 | . . 81 . . . 37 42 63 Time Decay 685 | . 49 87 50 . 119 290 10 80 Lost Part 193 | . . . 40 . . 128 . 25 Squads Dispatched 5 | . 1 . 3 . . . . 1 Investigation . | . . . . . . . . . Extermination . | . . . . . . . . . Reinforcement 3 | . 1 . 1 . . . . 1 Assault . | . . . . . . . . . Garrison 2 | . . . 2 . . . . . Intercept . | . . . . . . . . . Searches Triggered . | . . . . . . . . . Construction Impeded . | . . . . . . . . . Haulers Reinforced . | . . . . . . . . . Active Scanning Responses . | . . . . . . . . . Cargo Convoy Interrupts . | . . . . . . . . . Stealth | -11 -10 -10 -8 -7 -6 -6 -6 -5 --------- Run | Yrd Mat Sub Mat Fac Fac Low Low Fac Distress Signals 1 | . . . . . 1 . . . Communications Jammed . | . . . . . . . . . Distress Signals . | . . . . . . . . . Times Spotted 100 | . 13 13 10 . 14 37 8 5 Peak Tracking Total 12 | . 4 5 5 . 12 11 8 5 Tactical Retreats 16 | . 1 1 . . 4 10 . . Traps | -11 -10 -10 -8 -7 -6 -6 -6 -5 ------- Run | Yrd Mat Sub Mat Fac Fac Low Low Fac Traps Triggered 2 | . . 1 . . 1 . . . Indirectly . | . . . . . . . . . Trap Hack Attempts . | . . . . . . . . . Triggered . | . . . . . . . . . Disarmed . | . . . . . . . . . Reprogrammed . | . . . . . . . . . Reused . | . . . . . . . . . Traps Extracted . | . . . . . . . . . Installed . | . . . . . . . . . Triggered . | . . . . . . . . . Machines | -11 -10 -10 -8 -7 -6 -6 -6 -5 ---------- Run | Yrd Mat Sub Mat Fac Fac Low Low Fac Machines Disabled 5 | . 2 3 . . . . . . Max in Single Turn 3 | . 1 3 . . . . . . Machines Repaired . | . . . . . . . . . Machines Dismantled . | . . . . . . . . . Machines Sabotaged . | . . . . . . . . . Overloaded Fab Kills . | . . . . . . . . . Hacking | -11 -10 -10 -8 -7 -6 -6 -6 -5 --------- Run | Yrd Mat Sub Mat Fac Fac Low Low Fac Machines Accessed 3 | . . 1 1 . 1 . . . Terminals 2 | . . . 1 . 1 . . . Fabricators . | . . . . . . . . . Repair Stations . | . . . . . . . . . Recycling Units . | . . . . . . . . . Scanalyzers . | . . . . . . . . . Garrison Access . | . . . . . . . . . Total Hacks 4 | . . 1 1 . 2 . . . Successful 3 | . . 1 1 . 1 . . . Failed 1 | . . . . . 1 . . . Catastrophic . | . . . . . . . . . Database Lockouts . | . . . . . . . . . Manual . | . . . . . . . . . Terminals 3 | . . . 1 . 2 . . . Fabricators . | . . . . . . . . . Repair Stations . | . . . . . . . . . Recycling Units . | . . . . . . . . . Scanalyzers . | . . . . . . . . . Garrison Access . | . . . . . . . . . Terminal Hacks 3 | . . 1 1 . 1 . . . Record 1 | . . . 1 . . . . . Recall Investigation 1 | . . . . . 1 . . . Proto ID Catalog 1 | . . 1 . . . . . . Fabricator Hacks . | . . . . . . . . . Repair Station Hacks . | . . . . . . . . . Recycling Unit Hacks . | . . . . . . . . . Scanalyzer . | . . . . . . . . . Garrison Access Hacks . | . . . . . . . . . Unauthorized Hacks . | . . . . . . . . . Terminals . | . . . . . . . . . Fabricators . | . . . . . . . . . Repair Stations . | . . . . . . . . . Recycling Units . | . . . . . . . . . Scanalyzers . | . . . . . . . . . Garrison Access . | . . . . . . . . . Data Cores Recovered . | . . . . . . . . . Used . | . . . . . . . . . Hacking Detections 2 | . . . 1 . 1 . . . Full Trace Events . | . . . . . . . . . Feedback Events . | . . . . . . . . . Feedback Blocked . | . . . . . . . . . Robot Schematics Acquired . | . . . . . . . . . Robots Built . | . . . . . . . . . Authchips . | . . . . . . . . . Time . | . . . . . . . . . Total Robot Build Rating . | . . . . . . . . . Part Schematics Acquired . | . . . . . . . . . Parts Built . | . . . . . . . . . Authchips . | . . . . . . . . . Time . | . . . . . . . . . Total Part Build Rating . | . . . . . . . . . Part Studies Acquired . | . . . . . . . . . Parts Repaired . | . . . . . . . . . Time . | . . . . . . . . . Parts Recycled . | . . . . . . . . . Recycled Matter . | . . . . . . . . . Retrieved Matter . | . . . . . . . . . Retrieved Components . | . . . . . . . . . Parts Scanalyzed . | . . . . . . . . . Part Schematics Acquired . | . . . . . . . . . Parts Damaged . | . . . . . . . . . Bothacking | -11 -10 -10 -8 -7 -6 -6 -6 -5 ------------ Run | Yrd Mat Sub Mat Fac Fac Low Low Fac Used RIF Installer . | . . . . . . . . . Robots Hacked 1 | . . . . . . . . 1 Non-combat . | . . . . . . . . . Combat 1 | . . . . . . . . 1 Robot Hacks Applied 1 | . . . . . . . . 1 parse_system 1 | . . . . . . . . 1 Relay Couplers Released . | . . . . . . . . . Fabnet Peak Effective % . | . . . . . . . . . Robots Rewired . | . . . . . . . . . Allies Hacked . | . . . . . . . . . Hacks Repelled . | . . . . . . . . . Allies | -11 -10 -10 -8 -7 -6 -6 -6 -5 -------- Run | Yrd Mat Sub Mat Fac Fac Low Low Fac Total Allies . | . . . . . . . . . Largest Group . | . . . . . . . . . Highest-Rated Group . | . . . . . . . . . Highest-Rated Ally . | . . . . . . . . . Total Orders . | . . . . . . . . . Ally Attacks . | . . . . . . . . . Total Damage . | . . . . . . . . . Kills . | . . . . . . . . . Allies Corrupted . | . . . . . . . . . Allies Melted . | . . . . . . . . . Intel | -11 -10 -10 -8 -7 -6 -6 -6 -5 ------- Run | Yrd Mat Sub Mat Fac Fac Low Low Fac Active Infowar (turns) 2339 | . 193 622 152 104 344 684 23 217 Optics 893 | . . . . . . 653 23 217 Structural 1443 | . 193 622 133 104 344 47 . . T.N.C. 1635 | . 83 622 152 104 344 330 . . Robot Analysis Total . | . . . . . . . . . Derelict Logs Recovered 4 | . . 2 . . . 1 1 . Drone Launches . | . . . . . . . . . Drone Recoveries . | . . . . . . . . . Exploration | -11 -10 -10 -8 -7 -6 -6 -6 -5 ------------- Run | Yrd Mat Sub Mat Fac Fac Low Low Fac Turns Passed 2395 | 38 209 622 152 104 344 684 23 219 Spaces Moved 3008 | 32 210 1016 146 156 509 714 46 179 Core 716 | 15 . . . . . 631 46 24 Treads . | . . . . . . . . . Legs 202 | 17 72 . . . 2 . . 111 Wheels . | . . . . . . . . . Hover 1328 | . 138 338 62 156 507 83 . 44 Flight 762 | . . 678 84 . . . . . Fastest Speed 34 | 50 56 37 34 48 48 50 50 50 Average Speed 61 | 87 78 43 41 53 58 77 50 103 Slowest Speed 250 | 120 120 120 56 108 190 250 50 130 Overloaded Moves . | . . . . . . . . . Propulsion Burnouts . | . . . . . . . . . Robots Hopped . | . . . . . . . . . Potential Cave-ins . | . . . . . . . . . Cave-ins Triggered . | . . . . . . . . . Exploration Rate (%) 26 | 3 35 52 18 5 14 92 13 5 Regions Visited 8 Branch Regions 3 Pre-discovered Areas 1 | . . . . . . . 1 . Known Exits Taken . | . . . . . . . . . Unknown Exits Taken 8 | 1 1 1 1 1 1 1 1 . Scrap Searched 6 | . . . . . . 4 2 . Spaces Dug 5 | . 5 . . . . . . . Terrain Destroyed 102 | . 45 57 . . . . . . Melee . | . . . . . . . . . Projectile . | . . . . . . . . . AOE 102 | . 45 57 . . . . . . Terrain Rammed . | . . . . . . . . . Walls Destroyed . | . . . . . . . . . Machines Disabled . | . . . . . . . . . Actions | -11 -10 -10 -8 -7 -6 -6 -6 -5 --------- Run | Yrd Mat Sub Mat Fac Fac Low Low Fac Total 3446 | 42 237 1172 200 177 547 813 45 213 Wait 251 | . . 134 16 7 14 66 . 14 Move 3000 | 31 209 1015 145 155 508 713 45 179 Hop . | . . . . . . . . . Pick Up 46 | 6 8 1 7 8 8 2 . 6 Fast Attach 8 | . 1 . . . 2 5 . . Attach 38 | 5 1 4 9 3 4 3 . 9 Detach 4 | . . 1 1 . . 2 . . Swap 11 | . 6 1 . 1 3 . . . Drop 17 | . 3 2 1 3 5 2 . 1 Fire 54 | . 9 14 21 . . 10 . . Melee 15 | . . . . . 3 10 . 2 Ram 2 | . . . . . . . . 2 Kick . | . . . . . . . . . Crush . | . . . . . . . . . Escape Stasis . | . . . . . . . . . Rewire . | . . . . . . . . . Trap . | . . . . . . . . . Miscellaneous . | . . . . . . . . . Route ------- -11/Scrapyard -10/Materials (discovered 2 exits: [*Min] / *Sub) -10/Subcaves -8/Materials -7/Factory -6/Factory -6/Lower Caves -6/Lower Caves -5/Factory (discovered 1 exit: [*Fac]) History --------- Turn | Location | Event 4 | -11/Scrapyard | Discovered new exit (range 16) 39 | -11/Scrapyard | Entered Materials 231 | -10/Materials | Discovered new exit (range 16) 237 | -10/Materials | Discovered new exit (range 10) 248 | -10/Materials | Entered Subcaves 316 | -10/Subcaves | Build established: Mutant 322 | -10/Subcaves | Ambushed by Subdwellers from Twisted Machinery 338 | -10/Subcaves | Ambushed by swarm of Subdwellers 588 | -10/Subcaves | Shifting Twisted Machinery released Riot Gun 628 | -10/Subcaves | Visited 4L-MR0's lab 643 | -10/Subcaves | Shifting Twisted Machinery released Sub. Machine Gun 721 | -10/Subcaves | Learned Materials trap positions 845 | -10/Subcaves | Discovered new exit (range 12) 870 | -10/Subcaves | Entered Materials 870 | -8/Materials | Evolved 4 slots: Power x1, Propulsion x2, Utility x1 871 | -8/Materials | Loaded intel: 25 trap records 910 | -8/Materials | Garrison activated, responded to threat 999 | -8/Materials | Lost 4 parts (1n3w) 1014 | -8/Materials | Discovered new exit (range 16) 1022 | -8/Materials | Entered Factory 1022 | -7/Factory | Evolved 2 slots: Utility x2 1090 | -7/Factory | Discovered new exit (range 14) 1126 | -7/Factory | Entered another Factory area 1126 | -6/Factory | Evolved 2 slots: Utility x1, Weapon x1 1443 | -6/Factory | Discovered new exit (range 6) 1470 | -6/Factory | Entered Lower Caves 1471 | -6/Lower Caves | Encountered a Warlord checkpoint 1511 | -6/Lower Caves | Attracted the attention of an 0b10 base 1589 | -6/Lower Caves | Lost 8 parts (1p4n2u1w) 1834 | -6/Lower Caves | Lost 5 parts (1p2u2w) 1889 | -6/Lower Caves | Core integrity fell below 50% 1973 | -6/Lower Caves | Lost 3 allies 2082 | -6/Lower Caves | Learned Factory trap positions 2107 | -6/Lower Caves | Core integrity fell below 20% 2150 | -6/Lower Caves | Discovered new exit (range 7) 2154 | -6/Lower Caves | Entered another Lower Caves area 2176 | -6/Lower Caves | Discovered new exit (range 4) 2177 | -6/Lower Caves | Entered Factory 2177 | -5/Factory | Evolved 2 slots: Utility x2 2178 | -5/Factory | Loaded intel: 88 trap records 2286 | -5/Factory | Discovered new exit (range 10) 2343 | -5/Factory | Spotted B-75 Beast 2380 | -5/Factory | Core integrity fell below 50% 2389 | -5/Factory | Core integrity fell below 20% 2396 | -5/Factory | Destroyed by G-67 Veteran with Plasma Rifle Last Messages --------------- Slug penetrates G-67 Veteran. Slug penetrates Wall. Penetrated by Slug. Gyrokinetic Inverter destroyed. Penetrated by Slug. Neutrino Core destroyed. Penetrated by Slug. Critical hit (Burn: +37). Slug penetrates Wall. Penetrated by Slug. Gyrokinetic Inverter destroyed. Slug penetrates G-50 Soldier. Slammed into Y-64 Sentinel. Destabilizing: System interference. Enh. Optical Array temporarily disabled. Adv. Targeting Computer temporarily disabled. Slug penetrates Wall. Penetrated by Slug. Slammed into Y-64 Sentinel. Map ----- +----------------------------------------------------+ | ????????????????^??????????????????????????? | | ???????????????????????????????????????????? | | ???????????????????????????????????????????? | | ???????????????????????????????????????????? | | ??????????????? ??????????????????????????? | | ????????????? ??????????????????????????? | | ????????????? ??????????????????????????? | | ????????????## ??????????????????????????? | | ????????????# ^ ?????????????????????????? | | ????????????# "F????????????????????????? | | ????????????# ""????????????????????????? | | ????????????# ????????????????????????? | | ????????????# ????????????????????????? | | ????????????# #????????????????????????? | | ????????????# #????????????????????????? | | ????????????# #????????????????????????? | | ????????????# #????????????????????????? | | ????????????+ #????????????????????????? | | ????????????# ##############???????????? | | ????????????# # #???????????? | | ????????????# # #???????????? | | ????????????# # ] #???????????? | | ????????????# ^^ # g = * #???????????? | | ????????????# ^^ # * #???????????? | | ????????????# # hg ** #???????????? | | ????????????+ /@ g #???????????? | | ????????????# #Y #???????????? | | ????????????# # #???????????? | | ????????????# # #???????????? | | ????????????# # #???????????? | | ????????????# # #???????????? | | ????????????# ##############???????????? | | ????????????# #????????????????????????? | | ????????????# ################# #??? | | ????????????# " + < +??? | | ????????????# # ####### #??? | | ????????????# " #??????????????? | | ????????????# # #??????????????? | | ????????????# |% # #??????????????? | | ????????????# ! " #??????????????? | | ????????????# # #??????????????? | | ############# # #??????????????? | | # """"" # ###########T ###?????????? | | # ""R"" # +????? | | # " " # #??????????? | | # # #??????????? | | # # #??????????? | | # # #??????????? | | # # ########??????????? | | # "" "" # #?????????????????? | +----------------------------------------------------+ Best States ------------- Heat Dissipation 40 Energy Generation 29 Energy Capacity 550 Matter Stores 300 Matter Capacity 300 Sight Range 22 Terrain Scan Density 10 Base Temperature (-) 150 Evasion (%) 63 Targeting Accuracy 16 Melee Accuracy 8 Offensive Hacking 10 Item Schematics ----------------- None Robot Schematics ------------------ None Fabricated ------------ Nothing Repaired ---------- Nothing Studied --------- None Alien Tech Used ----------------- None Achievements -------------- Mistaken Identity Slippery One Challenges ------------ None Game ------ Seed SurgeTachyonCorpse Manual? 0 Play Time 00:48:25 Cumulative 15.2 hours Start 2025.12.18 @ 10:55:28 End 2025.12.18 @ 11:45:32 Sessions 1 Manual Loads 0 Difficulty Rogue Special Mode None Game No. 25 Rogue 24 Adventurer 1 Explorer 0 Win Type - Total 0 Types 0/0/0/0/0/0/0/0/0/0 Lore% 3 Gallery% 20 Achievement% 13 Wizard Run 0 Options --------- Layout 1 ASCII 0 Keyboard 0 Movement Arrows Keybinds 0 Fullscreen 1 Font 24/Smallcaps Map View 50x35 Zoom Use 0% Tactical HUD 0 Map Filters NONE Filters NONE Steam 1 RUN: 26f973fd-b51e-4fb2-8e5c-d331a9d07194